bitfinex/quotes_ETHUSD_20240828
["timestamp","ask_amount","ask_price","bid_price","bid_amount"]
[1724864167056,3.9619,2524.1,2522.6,3.96407]
[1724864167057,3.96303,2523.4,2522.6,3.96407]
[1724864167206,0.396303,2523.3,2522.6,3.96407]
[1724864167410,3.96301,2523.4,2522.8,3.96376]
[1724864167747,3.96268,2523.6,2523.0,3.96342]
[1724864167748,0.396301,2523.3,2523.0,3.96342]
[1724864167946,3.96304,2523.4,2522.4,3.96434]
[1724864168152,0.396304,2523.3,2522.8,3.96378]
[1724864168303,3.96266,2523.6,2523.0,3.96352]
[1724864168509,3.96283,2523.5,2523.0,3.96352]
[1724864168706,3.96323,2523.2,2522.6,3.96407]
[1724864168911,3.96314,2523.3,2522.2,0.399]
[1724864169148,3.96356,2523.0,2522.4,3.96438]
[1724864169307,3.96381,2522.9,2522.2,3.96469]
[1724864169621,3.96378,2522.9,2522.3,3.96461]
[1724864169947,4.360161,2522.9,2522.3,3.96461]
[1724864170104,0.396381,2522.9,2522.4,3.96447]
[1724864170305,0.396381,2522.9,2522.0,3.96507]
[1724864170543,0.46878833,2523.5,2522.0,0.436407]
[1724864170746,5.2529,2523.9,2522.7,3.96389]
[1724864170747,3.96302,2523.4,2522.7,3.96389]
[1724864170947,3.96302,2523.4,2522.3,4.36356]
[1724864170948,4.0856195,2523.7,2523.0,3.96343]
[1724864171260,0.1230995,2523.7,2522.9,0.07926565]
[1724864171472,0.1230995,2523.7,2523.6,3.96259]
[1724864171748,0.1230995,2523.7,2523.4,3.96288]
[1724864172044,3.96284,2523.5,2522.8,3.96375]
[1724864172254,2.5595995,2523.7,2523.2,3.9631]
[1724864172550,0.1230995,2523.7,2523.4,3.96287]
[1724864172711,0.1230995,2523.7,2523.2,3.96309]
[1724864172910,0.1230995,2523.7,2523.4,3.96289]
[1724864173142,0.1230995,2523.7,2523.4,3.96281]
[1724864173348,0.1230995,2523.7,2523.6,3.96259]
[1724864174072,0.1230995,2523.7,2523.5,3.96273]
[1724864174240,0.1230995,2523.7,2522.7,3.9639]
[1724864174446,10.36286,2523.3,2522.7,3.9639]
[1724864174671,2.4365,2523.3,2522.0,6.34345]
[1724864174984,0.53164145,2523.7,2523.2,3.9631]
[1724864175154,0.53164145,2523.7,2523.5,3.96263]
[1724864175155,0.1230995,2523.7,2523.5,3.96263]
[1724864175480,0.1230995,2523.7,2523.1,3.96332]
[1724864175481,0.1230995,2523.7,2523.1,7.92657]
[1724864175654,0.53164045,2523.7,2523.1,3.96324]
[1724864175853,8.0480795,2523.7,2523.1,3.96324]
[1724864176057,0.1230995,2523.7,2522.9,3.96364]
[1724864176275,3.9558431,2523.7,2522.9,7.92729]
[1724864176471,3.96268,2523.6,2523.0,3.9635]
[1724864176675,3.96268,2523.6,2522.5,4.36319]
[1724864176676,3.96268,2523.6,2522.5,0.399]
[1724864176873,3.96292,2523.4,2522.8,3.96374]
[1724864177088,3.96317,2523.3,2522.7,3.96391]
[1724864177256,3.96363,2523.0,2522.3,3.96455]
[1724864177460,3.9638,2522.9,2522.3,3.96455]
[1724864177675,3.96363,2523.0,2521.6,3.96568]
[1724864177676,6.40101,2522.4,2521.6,3.96568]
[1724864177897,6.40101,2522.4,2521.0,2.3784]
[1724864177898,6.40101,2522.4,2521.8,3.96529]
[1724864178110,3.96482,2522.2,2521.4,7.93186]
[1724864178402,0.396482,2522.1,2521.8,3.96538]
[1724864178544,3.96508,2522.1,2521.3,3.96608]
[1724864178743,3.96503,2522.1,2521.3,0.07931188]
[1724864178978,3.96536,2521.9,2521.2,3.96625]
[1724864179186,3.96536,2521.9,2521.2,7.9325]
[1724864179359,4.361538,2522.1,2520.8,3.96693]
[1724864179360,3.96589,2521.5,2520.8,3.96689]
[1724864179556,6.40212,2521.7,2521.0,3.96655]
[1724864179557,6.40208,2521.7,2521.0,3.96655]
[1724864179771,3.96598,2521.5,2520.8,3.96687]
[1724864179975,3.96617,2521.4,2520.8,3.96687]
[1724864180171,3.96614,2521.4,2520.8,3.96687]
[1724864180387,3.96652,2521.1,2520.6,3.96724]
[1724864180573,3.96641,2521.2,2520.6,7.9344]
[1724864180774,2.4365,2521.7,2521.3,3.9662]
[1724864181096,2.4365,2521.7,2520.7,0.07933588]
[1724864181097,2.4365,2521.7,2521.1,3.96642]
[1724864181394,2.4365,2522.2,2521.2,0.07932195]
[1724864181589,2.4365,2522.2,2521.7,3.96548]
[1724864181796,2.4365,2522.2,2521.3,3.96615]
[1724864181797,3.96515,2522.0,2521.3,3.96615]
[1724864181993,3.96515,2522.0,2520.8,6.22951999]
[1724864181994,3.96529,2521.9,2520.9,3.96676]
[1724864182287,3.96582,2521.6,2520.9,3.96675]
[1724864182489,2.4568,2521.6,2520.9,3.96675]
[1724864182794,2.4568,2521.6,2521.1,3.96651]
[1724864182991,3.96605,2521.4,2520.9,3.96674]
[1724864183290,6.42198,2522.0,2521.4,3.96597]
[1724864183600,6.42197,2522.0,2521.3,3.96615]
[1724864183754,6.42197,2522.0,2521.2,3.96627]
[1724864183755,3.96539,2521.9,2521.2,3.96627]
[1724864184096,3.96539,2521.9,2521.2,0.07931827]
[1724864184316,3.96566,2521.7,2521.1,3.96643]
[1724864184608,3.96566,2521.7,2521.1,3.96642]
[1724864184786,3.9656,2521.7,2521.1,3.96642]
[1724864184965,4.4263819,2521.7,2520.9,3.96668]
[1724864185153,4.4263819,2521.7,2521.1,3.9665]
[1724864185354,4.4263819,2521.7,2520.9,3.96668]
[1724864185553,4.4263819,2521.7,2521.1,3.96648]
[1724864185760,2.4568,2522.0,2520.4,0.399]
[1724864186051,2.4568,2522.0,2520.5,3.96736]
[1724864186052,3.96652,2521.1,2520.5,3.96736]
[1724864186295,3.96652,2521.1,2520.5,3.96743]
[1724864186591,0.75535692,2521.9,2521.1,3.96649]
[1724864186592,2.3147,2521.8,2521.1,3.96649]
[1724864186795,3.96576,2521.6,2520.9,3.96674]
[1724864186954,3.96576,2521.6,2521.0,1.01]
[1724864187857,3.96606,2521.4,2521.0,1.01]
[1724864188167,3.96576,2521.6,2521.0,4.97667]
[1724864188364,3.96576,2521.6,2521.0,1.01]
[1724864188574,3.96652,2521.1,2521.0,1.01]
[1724864188772,2.3151,2521.2,2521.0,1.01]
[1724864189371,6.281,2521.5,2521.0,4.97658]
[1724864189588,3.96608,2521.4,2521.0,1.01]
[1724864189773,3.96641,2521.2,2521.0,1.01]
[1724864190189,3.96608,2521.4,2521.0,1.01]
[1724864191212,3.96649,2521.2,2521.0,1.01]
[1724864191359,6.28101,2521.5,2521.0,1.01]
[1724864191558,3.96607,2521.4,2521.0,1.01]
[1724864191795,3.96621,2521.3,2521.0,1.01]
[1724864191981,3.96607,2521.4,2521.0,1.01]
[1724864192156,3.96622,2521.3,2521.0,1.01]
[1724864192502,0.628117,2521.4,2521.0,1.01]
[1724864192660,2.3151,2521.5,2521.0,1.01]
[1724864192866,2.3151,2521.5,2521.1,3.96648]
[1724864193214,2.39,2522.0,2521.1,0.07933011]
[1724864193357,2.39,2522.5,2521.3,2.3303]
[1724864193558,3.96496,2522.1,2521.6,3.96571]
[1724864193969,3.96496,2522.1,2521.2,3.96631]
[1724864193970,3.96534,2521.9,2521.4,3.96591]
[1724864194179,3.96534,2521.9,2521.2,3.96628]
[1724864194180,3.96534,2521.9,2521.3,3.96607]
[1724864194586,3.96552,2521.8,2521.2,3.96628]
[1724864194904,3.9656,2521.7,2521.2,3.96628]
[1724864195088,3.9656,2521.7,2521.2,4.97628]
[1724864195301,3.96582,2521.6,2521.2,1.01]
[1724864196325,2.8775836,2521.9,2521.2,1.01]
[1724864196464,6.40674,2521.9,2521.3,4.04544471]
[1724864196790,3.96555,2521.8,2521.3,3.96612]
[1724864197104,7.443934,2521.9,2521.3,3.96612]
[1724864197260,3.96474,2522.3,2521.6,3.96573]
[1724864197590,6.22702,2522.5,2521.8,3.96533]
[1724864197791,2.2626,2522.5,2521.7,0.07930697]
[1724864197974,3.96528,2521.9,2521.4,3.9659]
[1724864198175,3.96528,2521.9,2521.2,7.35096]
[1724864198176,0.50967692,2522.4,2521.2,1.01]
[1724864198379,3.96568,2521.7,2521.2,1.01]
[1724864198577,3.96543,2521.8,2521.2,1.01]
[1724864198776,2.306,2522.0,2521.2,1.01]
[1724864198983,3.96584,2521.6,2521.2,1.01]
[1724864199484,7.93168,2521.6,2521.2,1.01]
[1724864199679,3.9659,2521.5,2521.2,1.01]
[1724864199868,3.96606,2521.4,2521.2,1.01]
[1724864200475,3.9662,2521.3,2521.2,1.01]
[1724864200676,7.9324,2521.3,2521.2,1.01]
[1724864200981,3.9662,2521.3,2521.2,1.01]
[1724864201422,7.9324,2521.3,2521.2,1.01]
[1724864201709,3.9662,2521.3,2521.2,1.01]
[1724864201924,7.9324,2521.3,2521.2,1.01]
[1724864202894,3.9662,2521.3,2521.2,1.01]
[1724864203080,7.9324,2521.3,2521.2,1.01]
[1724864203282,8.95753,2521.3,2521.2,1.01]
[1724864204831,8.95753,2521.3,2519.9,3.96837]
[1724864204832,3.9671,2520.8,2519.9,3.96837]
[1724864205119,3.96638,2521.2,2519.7,2.2623]
[1724864205120,3.96646,2521.2,2520.3,3.96767]
[1724864205277,3.96646,2521.2,2520.4,0.07934172]
[1724864205278,3.9667,2521.0,2520.4,0.07934172]
[1724864205715,3.96677,2521.0,2520.4,0.07934172]
[1724864205930,3.96684,2520.9,2519.8,0.26613]
[1724864206094,3.96684,2520.9,2519.8,0.66513]
[1724864206602,3.96715,2520.7,2519.9,3.9683]
[1724864206819,3.96684,2520.9,2519.9,4.657873]
[1724864206994,3.96684,2520.9,2520.0,0.07934747]
[1724864207194,3.96684,2520.9,2519.9,8.626163]
[1724864207195,3.96715,2520.7,2519.9,8.626163]
[1724864207391,3.96684,2520.9,2520.0,4.8973493]
[1724864207612,3.96715,2520.7,2519.9,0.689573]
[1724864207933,3.96715,2520.7,2520.0,0.07935102]
[1724864208093,7.9344,2520.7,2520.0,0.07935102]
[1724864208299,3.96715,2520.7,2520.0,4.04759102]
[1724864208918,3.96715,2520.7,2519.9,3.96832]
[1724864209090,3.96715,2520.7,2519.9,4.657893]
[1724864209296,3.96715,2520.7,2520.0,0.079351]
[1724864209503,3.96715,2520.7,2520.0,4.047511]
[1724864209810,3.96715,2520.7,2519.9,4.657893]
[1724864210400,3.9674,2520.6,2519.9,4.657893]
[1724864211126,3.96747,2520.5,2519.8,0.66513]
[1724864211299,3.96736,2520.6,2519.9,3.96839]
[1724864211490,7.93451,2520.7,2519.9,3.96839]
[1724864211692,3.96725,2520.7,2520.0,4.04757294]
[1724864212114,3.96694,2520.9,2520.2,3.96778]
[1724864212330,3.96702,2520.8,2520.1,3.96797]
[1724864212483,0.944042,2521.1,2520.5,3.96743]
[1724864212830,3.0,2521.3,2520.6,0.0793387]
[1724864212831,3.96629,2521.3,2520.6,0.0793387]
[1724864212986,3.96597,2521.5,2520.6,0.72268857]
[1724864213187,3.96573,2521.6,2520.8,3.96688]
[1724864213391,3.96564,2521.7,2521.0,3.96666]
[1724864213625,3.96564,2521.7,2521.1,0.07931885]
[1724864213809,3.96587,2521.6,2520.8,3.96688]
[1724864214322,3.96564,2521.7,2520.8,3.96688]
[1724864214323,3.96564,2521.7,2520.9,4.0461396]
[1724864214548,3.96576,2521.6,2520.9,0.0793196]
[1724864214756,3.96589,2521.5,2520.9,0.0793196]
[1724864214914,2.4739,2521.9,2520.6,4.61052987]
[1724864214915,3.96622,2521.3,2520.6,0.64334987]
[1724864215116,3.96622,2521.3,2520.6,4.61064987]
[1724864215818,4.21286,2521.8,2520.4,3.9676]
[1724864215819,3.96647,2521.2,2520.4,3.9676]
[1724864216017,8.329567,2521.2,2520.4,3.9676]
[1724864216219,8.329567,2521.2,2520.2,3.96787]
[1724864216220,3.96676,2521.0,2520.2,3.96787]
[1724864216466,3.96693,2520.9,2520.2,3.96787]
[1724864216942,3.96676,2521.0,2520.2,3.96787]
[1724864216943,3.96676,2521.0,2520.2,3.96783]
[1724864217150,0.396676,2520.9,2520.3,0.07934325]
[1724864217414,3.96653,2521.1,2520.4,3.96761]
[1724864217613,3.96644,2521.2,2520.5,0.07934078]
[1724864217814,3.96644,2521.2,2520.5,0.07933537]
[1724864218058,3.96662,2521.1,2520.5,0.07933537]
[1724864218226,4.363084,2521.2,2520.5,0.07933537]
[1724864218430,3.96612,2521.4,2520.6,3.9673]
[1724864218763,3.96636,2521.2,2520.4,3.96748]
[1724864218943,3.96636,2521.2,2520.5,3.96735]
[1724864219526,3.96683,2521.0,2520.2,3.96785]
[1724864219861,7.93362,2521.0,2520.2,4.649165]
[1724864220019,3.96685,2520.9,2520.2,4.649165]
[1724864220717,4.55285973,2521.4,2520.1,2.4463]
[1724864220718,3.96727,2520.7,2520.1,2.4463]
[1724864220923,3.96689,2520.9,2520.1,2.4463]
[1724864221123,2.3046,2521.1,2520.1,3.16708705]
[1724864221124,3.9666,2521.1,2520.1,3.16708705]
[1724864221425,3.96672,2521.0,2520.3,3.96767]
[1724864221620,7.93323,2521.1,2520.3,3.96767]
[1724864221849,3.9666,2521.1,2520.3,3.96767]
[1724864222055,3.96631,2521.3,2520.6,3.96717]
[1724864222267,3.96631,2521.3,2520.7,0.07933244]
[1724864222473,3.96607,2521.4,2520.7,4.04647244]
[1724864223080,3.96568,2521.7,2520.8,0.07933249]
[1724864223230,3.96551,2521.8,2521.1,3.96649]
[1724864223582,3.96551,2521.8,2521.1,0.07931989]
[1724864223729,3.96496,2522.1,2521.1,0.07931989]
[1724864223930,3.96588,2521.6,2520.8,3.96689]
[1724864224282,3.96591,2521.5,2520.8,3.96689]
[1724864224570,3.96591,2521.5,2520.8,7.93377]
[1724864224727,3.96561,2521.7,2520.8,5.007727]
[1724864224930,3.96473,2522.3,2521.4,3.96595]
[1724864225130,3.96412,2522.7,2521.6,2.3268]
[1724864225329,3.96412,2522.7,2522.0,3.96498]
[1724864225528,3.96412,2522.7,2522.1,0.07928611]
[1724864225867,6.34411,2522.9,2522.1,0.07928611]
[1724864226078,3.96371,2522.9,2522.1,0.07928611]
[1724864226374,5.34318673,2522.9,2522.1,0.07928611]
[1724864226679,4.55046973,2522.9,2522.0,3.96498]
[1724864226986,3.96441,2522.5,2521.7,4.20618036]
[1724864227196,3.96409,2522.7,2521.9,3.96525]
[1724864227339,3.96409,2522.7,2521.8,1.04986304]
[1724864227538,3.96419,2522.6,2521.8,3.96533]
[1724864227787,3.96419,2522.6,2521.7,4.20607036]
[1724864227943,3.96419,2522.6,2521.1,3.96646]
[1724864227944,3.96505,2522.1,2521.3,3.96613]
[1724864228276,3.96469,2522.3,2521.4,2.4882]
[1724864228476,3.96469,2522.3,2521.6,3.96565]
[1724864228664,3.96469,2522.3,2521.5,3.96587]
[1724864228665,0.396469,2522.2,2521.5,3.96587]
[1724864228982,3.96497,2522.1,2521.4,6.45421]
[1724864229195,0.396469,2522.2,2521.4,6.45421]
[1724864229353,4.360829,2522.5,2521.7,3.96557]
[1724864229685,3.96441,2522.5,2521.7,3.96548]
[1724864229844,3.96482,2522.2,2521.5,3.9658]
[1724864230043,2.704241,2522.4,2521.4,2.4882]
[1724864230247,3.96517,2522.0,2521.2,3.96626]
[1724864230443,3.96541,2521.9,2521.1,3.96643]
[1724864230650,3.96551,2521.8,2521.0,2.8777]
[1724864230966,3.96583,2521.6,2521.0,2.4787]
[1724864231181,4.362131,2521.7,2521.0,6.44537]
[1724864231342,3.96485,2522.2,2521.2,3.96634]
[1724864231546,3.96568,2521.7,2521.0,6.44529]
[1724864231754,3.96534,2521.9,2521.0,2.5580165]
[1724864232082,3.96544,2521.8,2521.1,3.9665]
[1724864232289,4.361974,2521.8,2521.1,3.9665]
[1724864232586,0.396534,2521.8,2521.2,0.07930957]
[1724864232738,0.396534,2521.8,2521.2,4.04562957]
[1724864232942,3.96505,2522.1,2521.4,3.96596]
[1724864233298,3.96473,2522.3,2521.5,4.0450817]
[1724864233589,4.65065897,2522.3,2521.5,4.0450817]
[1724864233743,4.65065897,2522.3,2521.5,0.0793017]
[1724864233945,3.96498,2522.1,2521.5,0.0793017]
[1724864234673,3.96415,2522.7,2521.6,2.4679]
[1724864234980,3.96466,2522.3,2521.6,6.43355]
[1724864235489,3.96466,2522.3,2521.6,10.39918]
[1724864235788,3.96466,2522.3,2521.6,6.43353]
[1724864235993,3.96442,2522.5,2521.6,6.43351]
[1724864236154,7.92889,2522.5,2521.7,3.96549]
[1724864236481,3.96452,2522.4,2521.7,3.96549]
[1724864236791,3.96509,2522.1,2521.3,2.3088]
[1724864236943,3.96508,2522.1,2521.3,2.3088]
[1724864237391,3.96452,2522.4,2521.3,2.3088]
[1724864237539,2.4786,2522.7,2521.1,3.96639]
[1724864237540,7.93073,2521.9,2521.1,3.96639]
[1724864237739,3.96551,2521.8,2521.1,3.96639]
[1724864237942,3.96582,2521.6,2520.9,6.32049]
[1724864238182,0.24044,2522.0,2520.9,2.3538]
[1724864238374,0.24044,2522.0,2520.3,3.96768]
[1724864238375,3.96661,2521.1,2520.4,2.3538]
[1724864238573,3.96648,2521.2,2520.4,6.32138]
[1724864238844,3.96668,2521.0,2520.5,1.028913]
[1724864239148,3.96668,2521.0,2520.4,2.3538]
[1724864239347,7.93295,2521.2,2520.4,2.3538]
[1724864239584,3.96646,2521.2,2520.4,2.3538]
[1724864239754,7.93322,2521.1,2520.4,2.3538]
[1724864239962,3.96568,2521.7,2520.9,3.96682]
[1724864240196,7.93065,2521.9,2521.1,6.28653]
[1724864240495,3.96519,2522.0,2521.3,3.9661]
[1724864240644,0.396519,2522.0,2521.4,0.07930727]
[1724864240850,3.96528,2521.9,2521.4,0.07930727]
[1724864241357,3.96583,2521.6,2521.1,2.3201]
[1724864241874,3.96583,2521.6,2520.8,0.399]
[1724864242069,3.96583,2521.6,2520.9,3.96673]
[1724864242286,3.96591,2521.5,2520.8,0.399]
[1724864242459,3.96583,2521.6,2520.8,3.96688]
[1724864242683,7.93167,2521.6,2520.8,5.04457]
[1724864242984,3.96606,2521.4,2520.7,2.4438]
[1724864243196,3.96646,2521.2,2520.7,2.4438]
[1724864244246,3.96613,2521.4,2520.7,2.4438]
[1724864244666,3.96589,2521.5,2520.7,2.4438]
[1724864244900,3.96621,2521.3,2520.7,2.4438]
[1724864245602,3.96567,2521.7,2520.8,0.07932764]
[1724864245974,3.96536,2521.9,2521.2,3.96624]
[1724864246175,3.96441,2522.5,2521.4,2.3513]
[1724864246527,3.96406,2522.7,2521.5,0.07929909]
[1724864246528,7.92826,2522.7,2521.5,0.07929909]
[1724864246796,3.96433,2522.5,2522.0,2.3577]
[1724864246955,3.96433,2522.5,2522.1,0.0792895]
[1724864247162,3.96433,2522.5,2522.0,2.3577]
[1724864247356,3.96433,2522.5,2521.7,6.36828]
[1724864247585,3.96448,2522.4,2521.7,11.150402]
[1724864247791,3.96373,2522.9,2522.0,3.96497]
[1724864247792,3.96411,2522.7,2522.0,3.96497]
[1724864247998,2.4022,2523.3,2522.2,3.96478]
[1724864248258,6.36533,2523.3,2522.5,3.96431]
[1724864248410,3.96308,2523.3,2522.6,0.71598414]
[1724864248703,3.96308,2523.3,2522.7,0.07926114]
[1724864248981,3.96283,2523.5,2522.7,4.04311114]
[1724864249185,4.359113,2523.5,2522.7,4.04311114]
[1724864249516,4.359113,2523.5,2522.7,8.00699114]
[1724864249666,4.359113,2523.5,2522.7,4.04311114]
[1724864250073,0.396283,2523.5,2522.7,0.07926114]
[1724864250297,3.96292,2523.4,2522.4,2.4028]
[1724864250471,3.96391,2522.8,2522.4,2.4028]
[1724864250674,3.96391,2522.8,2522.1,2.2938]
[1724864250893,0.50484306,2522.9,2522.1,6.655165]
[1724864251091,0.50484306,2522.9,2522.2,3.96479]
[1724864251407,4.56008205,2523.0,2522.1,6.655125]
[1724864251592,3.96428,2522.6,2522.1,2.2938]
[1724864251904,3.96432,2522.5,2522.1,2.2938]
[1724864252149,3.96449,2522.4,2521.8,2.2938]
[1724864253404,0.79286,2522.5,2521.8,2.2938]
[1724864253605,3.9642,2522.6,2521.8,2.2938]
[1724864253833,3.96442,2522.5,2521.8,2.2938]
[1724864254329,3.9645,2522.4,2521.8,2.2938]
[1724864254534,3.96466,2522.3,2521.8,2.2938]
[1724864254832,3.9645,2522.4,2521.8,2.2938]
[1724864255008,3.96476,2522.3,2521.8,2.2938]
[1724864255344,4.757372,2522.4,2521.8,2.2938]
[1724864255549,7.9291,2522.4,2521.8,2.2938]
[1724864255835,3.9645,2522.4,2521.8,2.2938]
[1724864256443,3.96421,2522.6,2521.8,2.2938]
[1724864256444,7.92849,2522.6,2521.8,6.25921]
[1724864256619,3.964,2522.8,2522.1,3.96485]
[1724864256823,3.964,2522.8,2521.9,4.591121]
[1724864256824,3.96418,2522.6,2521.9,4.591121]
[1724864257024,3.96432,2522.5,2522.0,0.6884921]
[1724864257195,3.96418,2522.6,2521.9,0.625921]
[1724864257709,3.96458,2522.4,2521.9,0.625921]
[1724864257905,3.96373,2522.9,2521.4,0.3978]
[1724864257906,3.96512,2522.0,2521.5,2.4762]
[1724864258421,3.96543,2521.8,2521.5,2.4762]
[1724864258617,7.93036,2522.0,2521.5,2.4762]
[1724864258935,3.96512,2522.0,2521.5,2.4762]
[1724864259250,3.96507,2522.1,2521.3,3.96617]
[1724864259391,3.96542,2521.9,2521.2,2.660344]
[1724864259597,7.93078,2521.9,2521.2,6.22997]
[1724864259841,3.96536,2521.9,2521.2,2.2637]
[1724864260001,3.96512,2522.0,2521.2,6.22991]
[1724864260205,3.96512,2522.0,2521.3,0.22637]
[1724864260436,7.93097,2521.8,2521.3,0.22637]
[1724864260740,3.96558,2521.7,2521.2,2.2637]
[1724864260950,3.96542,2521.8,2521.2,2.2637]
[1724864261426,7.93094,2521.8,2521.2,2.2637]
[1724864261603,3.96542,2521.8,2521.2,2.2637]
[1724864261805,3.96542,2521.8,2521.2,2.886708]
[1724864262135,6.52997,2522.3,2521.2,2.886708]
[1724864262136,3.96466,2522.3,2521.2,2.886708]
[1724864262337,3.96568,2521.7,2521.2,2.886708]
[1724864262553,7.93134,2521.7,2521.2,2.2637]
[1724864262752,3.9662,2521.3,2520.9,2.6615]
[1724864262907,3.966,2521.5,2520.9,2.6615]
[1724864263296,3.9655,2521.8,2521.0,3.96653]
[1724864263456,3.9655,2521.8,2521.0,4.70865323]
[1724864263739,3.96527,2521.9,2521.2,3.96636]
[1724864264151,3.96543,2521.8,2521.2,3.96634]
[1724864264332,3.96543,2521.8,2521.1,7.93276]
[1724864264545,3.96543,2521.8,2521.1,7.9328]
[1724864264743,3.96559,2521.7,2521.1,3.96636]
[1724864265428,3.96559,2521.7,2521.1,7.9328]
[1724864265634,3.96527,2521.9,2520.9,6.23044]
[1724864265635,3.96601,2521.5,2520.9,6.23044]
[1724864265820,3.9659,2521.5,2520.9,6.23044]
[1724864266174,3.96534,2521.9,2521.0,0.70236245]
[1724864266461,3.96527,2521.9,2521.2,3.96629]
[1724864266615,2.4278,2522.5,2520.9,2.6615]
[1724864266616,2.4278,2522.5,2521.5,2.4797]
[1724864266969,3.96442,2522.5,2521.8,3.96531]
[1724864267119,3.96442,2522.5,2521.5,2.4797]
[1724864267120,3.96411,2522.7,2521.9,0.07929293]
[1724864267319,3.96411,2522.7,2522.1,3.96486]
[1724864267570,27.0,2525.0,2522.3,3.96454]
[1724864267571,3.96348,2523.1,2522.3,3.96454]
[1724864267861,3.96348,2523.1,2522.4,0.73162639]
[1724864268051,0.47249306,2523.4,2522.4,0.73162639]
[1724864268220,3.9638,2522.9,2522.4,0.07927401]
[1724864268921,3.9638,2522.9,2522.2,6.44438]
[1724864269148,3.9638,2522.9,2522.3,1.040924]
[1724864269421,3.9638,2522.9,2522.3,5.005504]
[1724864269628,3.9638,2522.9,2522.4,0.0792737]
[1724864269836,3.9638,2522.9,2522.3,5.005504]
[1724864270032,3.9638,2522.9,2522.2,2.4797]
[1724864270033,3.96397,2522.8,2522.2,2.4797]
[1724864270564,3.96428,2522.6,2522.2,2.4797]
[1724864271125,3.96428,2522.6,2521.9,3.96515]
[1724864271351,3.96387,2522.8,2522.1,3.96492]
[1724864272033,3.96411,2522.7,2522.0,0.644485]
[1724864272577,3.96442,2522.5,2521.8,2.4797]
[1724864272724,3.96426,2522.6,2521.9,3.96515]
[1724864273074,3.96372,2522.9,2521.9,3.96517]
[1724864273225,3.96372,2522.9,2522.1,7.92967]
[1724864273549,3.96372,2522.9,2522.2,3.96478]
[1724864273931,3.96394,2522.8,2522.1,3.96483]
[1724864274265,3.96437,2522.5,2521.8,6.44509]
[1724864274444,3.96437,2522.5,2522.0,0.644487]
[1724864274817,3.96407,2522.7,2522.0,4.609467]
[1724864275019,3.222435,2523.3,2522.1,0.4609467]
[1724864275219,3.96464,2522.3,2521.8,2.4797]
[1724864275439,4.08692045,2524.1,2523.2,2.2938]
[1724864275673,0.02,2524.4,2523.6,3.9625]
[1724864275824,0.02,2524.4,2523.7,4.04166879]
[1724864276023,0.02,2524.4,2523.9,3.96199]
[1724864276262,0.02,2524.4,2524.0,0.0792294]
[1724864276575,3.98134,2524.4,2524.0,0.0792294]
[1724864276729,3.98134,2524.4,2523.3,2.2938]
[1724864276730,3.96237,2523.8,2523.3,2.2938]
[1724864277222,3.96238,2523.8,2523.3,2.2938]
[1724864277625,2.857834,2524.3,2522.9,2.2938]
[1724864277626,3.9625,2523.7,2522.9,2.2938]
[1724864277848,0.5741018,2524.1,2522.9,2.2938]
[1724864277849,3.9624,2523.8,2523.0,3.96344]
[1724864278034,2.857834,2524.3,2523.3,3.96294]
[1724864278035,3.96215,2523.9,2523.3,3.96294]
[1724864278239,3.96241,2523.8,2523.1,3.96329]
[1724864278467,0.396241,2523.7,2522.9,6.25736]
[1724864278665,3.96259,2523.6,2522.9,6.25736]
[1724864278872,3.96259,2523.6,2522.9,6.883096]
[1724864279476,3.96259,2523.6,2522.9,10.846686]
[1724864279764,3.96259,2523.6,2522.9,6.25736]
[1724864279765,3.96275,2523.5,2522.9,6.25736]
[1724864279965,7.92527,2523.6,2522.9,6.25736]
[1724864280175,3.96254,2523.7,2523.1,3.96328]
[1724864280331,4.2494834,2524.2,2523.1,3.96328]
[1724864280332,3.96224,2523.9,2523.2,0.07925442]
[1724864280680,3.96262,2523.6,2522.9,10.846726]
[1724864280970,3.96262,2523.6,2523.0,3.96344]
[1724864281272,4.358394,2523.9,2523.3,3.96303]
[1724864281445,3.96228,2523.8,2523.1,8.00584478]
[1724864281646,3.96217,2523.9,2523.3,3.96305]
[1724864281842,4.358387,2523.9,2523.3,3.96305]
[1724864282274,3.96236,2523.8,2523.1,8.00573478]
[1724864282571,3.96246,2523.7,2523.1,4.04248478]
[1724864282772,0.396217,2523.9,2523.2,3.9632]
[1724864282984,3.96201,2524.0,2522.9,6.25744]
[1724864283138,3.96254,2523.7,2523.0,4.04267089]
[1724864283339,3.96169,2524.2,2522.9,6.25739]
[1724864283340,3.96199,2524.0,2523.4,3.96289]
[1724864283554,3.96199,2524.0,2523.2,3.96307]
[1724864283841,3.96199,2524.0,2523.3,0.07924994]
[1724864284036,7.9241,2524.0,2523.3,0.07924994]
[1724864284264,3.96237,2523.8,2523.3,0.07924994]
[1724864284476,3.96196,2524.0,2523.4,3.96285]
[1724864284641,4.5555418,2524.4,2523.7,3.96234]
[1724864285176,3.96168,2524.2,2523.6,3.96245]
[1724864285352,0.02,2524.4,2524.0,3.96184]
[1724864285686,0.02,2524.4,2524.1,0.396184]
[1724864285857,0.02,2524.4,2524.1,3.96179]
[1724864286578,0.02,2524.4,2524.2,2.4928]
[1724864286786,0.02,2524.4,2523.9,7.92406]
[1724864287085,0.02,2524.4,2524.1,3.96168]
[1724864287945,0.02,2524.4,2523.9,5.003756]
[1724864288148,0.02,2524.4,2524.0,3.96196]
[1724864288481,0.02,2524.4,2524.1,3.96171]
[1724864288691,0.02,2524.4,2524.3,7.92298]
[1724864289594,0.02,2524.4,2524.1,3.9617]